fUSD/lending_fUSD_20240827
["ID","MTS","AMOUNT","RATE_DAILY","PERIOD"]
[336307352,1724771432492,-3599.92916729,0.00010793,2]
[336307353,1724771432503,-25375.61976135,0.00010793,2]
[336307354,1724771432513,-20830.5471736,0.00010793,2]
[336307355,1724771432523,-3822.1240323,0.00010793,2]
[336307356,1724771432532,-32835.2867841,0.00010793,2]
[336307357,1724771432541,-44073.74963868,0.000108,2]
[336307358,1724771432550,-969.95060419,0.000108,2]
[336307359,1724771432559,-401.62337545,0.000108,2]
[336307360,1724771432568,-2000.0,0.000108,2]
[336307361,1724771432578,-570.0,0.000108,3]
[336307362,1724771432587,-2546.73748,0.000108,2]
[336307363,1724771432596,-513.8264,0.000108,2]
[336307364,1724771432606,-332.36504582,0.000108,2]
[336307365,1724771432615,-500.0,0.000108,2]
[336307366,1724771432624,-358.0,0.000108,2]
[336307367,1724771432634,-3228.957,0.000108,2]
[336307368,1724771432643,-1000.0,0.000108,2]
[336307369,1724771432652,-7816.4123,0.000108,2]
[336307370,1724771432661,-226.0,0.000108,2]
[336307371,1724771432670,-2039.8708,0.000108,2]
[336307372,1724771432679,-5370.23,0.000108,2]
[336307373,1724771432690,-163.13813902,0.0001081,2]
[336307374,1724771432699,-330.0106221,0.00010825,2]
[336307375,1724771432708,-13451.0,0.0001084,2]
[336307376,1724771432717,-163.13813902,0.0001084,2]
[336307377,1724771432727,-499.99,0.0001084,2]
[336307378,1724771432736,-150.66,0.0001084,2]
[336307379,1724771432746,-150.66,0.0001084,2]
[336307380,1724771432755,-150.66,0.0001084,2]
[336307381,1724771432765,-150.66,0.0001084,2]
[336307382,1724771432776,-1023.2693604,0.00010843,2]
[336307383,1724771432795,-368.6065263,0.00010843,2]
[336307384,1724771432804,-33020.8006774,0.00010843,2]
[336307385,1724771432813,-17158.4059716,0.00010843,2]
[336307386,1724771432822,-3148.6227538,0.00010843,2]
[336307387,1724771432831,-27046.8738118,0.00010843,2]
[336307388,1724771432840,-10122.91256718,0.00010847,2]
[336307389,1724771432850,-507.0,0.0001085,2]
[336307390,1724771432859,-49473.04098507,0.0001085,2]
[336307391,1724771432871,-676.1,0.0001085,2]
[336307392,1724771432883,-30966.5,0.0001085,2]
[336307393,1724771432893,-32123.09793523,0.0001085,2]
[336307394,1724771432904,-229049.69967754,0.0001085,2]
[336307395,1724771432915,-3603.53690901,0.0001085,2]
[336307396,1724771432926,-85627.43529804,0.0001085,2]
[336307397,1724771432941,-620.41836,0.0001085,2]
[336307398,1724771432952,-732.10144154,0.0001085,2]
[336307399,1724771432963,-28419.95610758,0.0001085,2]
[336307400,1724771432975,-1001.44972873,0.0001085,2]
[336307401,1724771432989,-955.65762198,0.0001085,2]
[336307402,1724771433000,-5008.20527986,0.0001085,2]
[336307403,1724771433011,-2871.78515676,0.0001085,2]
[336307404,1724771433022,-2053.76120749,0.0001085,2]
[336307405,1724771433035,-2233.16988502,0.0001085,2]
[336307406,1724771433046,-10808.08059513,0.0001085,2]
[336307407,1724771433066,-1245.568807,0.0001085,2]
[336307408,1724771433078,-2497.50370162,0.0001085,2]
[336307411,1724771438513,-396.25029,0.00010793,2]
[336307412,1724771438565,-1108.919285,0.00010793,2]
[336307413,1724771438575,-1239.8287192,0.00010843,2]
[336307414,1724771438584,-2329.08085605,0.0001085,2]
[336307415,1724771438712,-941.43031319,0.0001085,2]
[336307416,1724771438725,-1061638.06013316,0.0001085,2]
[336307417,1724771438734,-151.0,0.0001085,2]
[336307418,1724771438743,-151.0,0.0001085,2]
[336307419,1724771438753,-151.0,0.0001085,2]
[336307420,1724771438762,-165.19422617,0.0001085,2]
[336307421,1724771438771,-1477.37045987,0.0001085,2]
[336307422,1724771438782,-3448.17376544,0.0001085,2]
[336307423,1724771438791,-312.15244413,0.00010852,2]
[336307424,1724771438800,-416.94380806,0.00010852,2]
[336307425,1724771438810,-150.612,0.00010859,2]
[336307426,1724771438819,-153.0,0.00010859,2]
[336307427,1724771438829,-150.0,0.00010859,2]
[336307428,1724771438838,-286.683,0.00010859,2]
[336307429,1724771438847,-150.0,0.00010859,2]
[336307430,1724771438858,-266.84672263,0.00010862,2]
[336307431,1724771438867,-360.0,0.0001087,2]
[336307432,1724771438876,-163.13813902,0.0001087,2]
[336307433,1724771438886,-150.66,0.0001087,2]
[336307434,1724771438895,-500.0,0.00010873,2]
[336307436,1724771438905,-1477.37045986,0.00010875,2]
[336307438,1724771438914,-3448.17376542,0.00010875,2]
[336307440,1724771438924,-124429.52109136,0.0001088,2]
[336307442,1724771438933,-29005.97169663,0.0001088,2]
[336307444,1724771438943,-22801.84146441,0.0001088,2]
[336307445,1724771438952,-151.0,0.0001088,2]
[336307448,1724771438962,-151.215466,0.0001088,2]
[336307450,1724771438972,-151.0,0.0001088,2]
[336307452,1724771438982,-151.0,0.0001088,2]
[336307454,1724771438991,-151.0,0.0001088,2]
[336307456,1724771439000,-151.321391,0.0001088,2]
[336307458,1724771439009,-151.0,0.0001088,2]
[336307460,1724771439018,-151.0,0.0001088,2]
[336307462,1724771439029,-151.0,0.0001088,2]
[336307464,1724771439043,-151.0,0.0001088,2]
[336307466,1724771439052,-151.0,0.0001088,2]
[336307468,1724771439061,-151.0,0.0001088,2]
[336307470,1724771439071,-151.0,0.0001088,2]
[336307472,1724771439081,-151.0,0.0001088,2]
[336307474,1724771439090,-321.392369,0.0001088,2]
[336307476,1724771439099,-321.392369,0.0001088,2]
[336307478,1724771439108,-151.0,0.0001088,2]
[336307480,1724771439117,-151.0,0.0001088,2]
[336307482,1724771439126,-151.0,0.0001088,2]
[336307484,1724771439136,-151.0,0.0001088,2]
[336307486,1724771439145,-151.394249,0.0001088,2]
[336307487,1724771439156,-151.0,0.0001088,2]
[336307489,1724771439165,-151.0,0.0001088,2]
[336307491,1724771439174,-151.0,0.0001088,2]
[336307493,1724771439184,-151.0,0.0001088,2]
[336307495,1724771439193,-151.0,0.0001088,2]
[336307497,1724771439202,-151.0,0.0001088,2]
[336307499,1724771439212,-151.0,0.0001088,2]
[336307501,1724771439221,-151.0,0.0001088,2]
[336307503,1724771439230,-151.0,0.0001088,2]
[336307505,1724771439239,-151.0,0.0001088,2]
[336307507,1724771439249,-187.547976,0.0001088,2]
[336307509,1724771439260,-151.0,0.0001088,2]
[336307511,1724771439269,-996.637624,0.0001088,2]
[336307513,1724771439280,-151.0,0.0001088,2]
[336307515,1724771439289,-189.298937,0.0001088,2]
[336307517,1724771439298,-996.637624,0.0001088,2]
[336307519,1724771439308,-244.376441,0.0001088,2]
[336307521,1724771439318,-189.298937,0.0001088,2]
[336307523,1724771439327,-244.376441,0.0001088,2]
[336307525,1724771439337,-474.515711,0.0001088,2]
[336307527,1724771439347,-151.0,0.0001088,2]
[336307529,1724771439356,-474.515711,0.0001088,2]
[336307531,1724771439366,-265.560328,0.0001088,2]
[336307533,1724771439376,-265.560328,0.0001088,2]
[336307535,1724771439386,-151.0,0.0001088,2]
[336307537,1724771439395,-151.0,0.0001088,2]
[336307539,1724771439404,-151.0,0.0001088,2]
[336307541,1724771439414,-11748.32421204,0.0001089,2]
[336307543,1724771439423,-151.0,0.00010899,2]
[336307545,1724771439433,-151.0,0.00010899,2]
[336307547,1724771439442,-151.0,0.00010899,2]
[336307549,1724771439452,-151.0,0.00010899,2]
[336307551,1724771439461,-151.0,0.00010899,2]
[336307553,1724771439470,-151.0,0.00010899,2]
[336307555,1724771439480,-218.422861,0.00010899,2]
[336307557,1724771439489,-218.422861,0.00010899,2]
[336307559,1724771439499,-151.0,0.00010899,2]
[336307561,1724771439508,-303.888326,0.00010899,2]
[336307563,1724771439518,-303.888326,0.00010899,2]
[336307565,1724771439529,-169.052234,0.00010899,2]
[336307567,1724771439538,-151.0,0.00010899,2]
[336307569,1724771439547,-151.0,0.00010899,2]
[336307571,1724771439557,-151.0,0.00010899,2]
[336307573,1724771439567,-151.0,0.00010899,2]
[336307575,1724771439576,-151.0,0.00010899,2]
[336307577,1724771439586,-151.0,0.00010899,2]
[336307579,1724771439595,-151.0,0.00010899,2]
[336307581,1724771439604,-151.0,0.00010899,2]
[336307583,1724771439613,-151.0,0.00010899,2]
[336307585,1724771439624,-151.0,0.00010899,2]
[336307587,1724771439634,-151.0,0.00010899,2]
[336307589,1724771439644,-151.0,0.00010899,2]
[336307591,1724771439654,-151.0,0.00010899,2]
[336307593,1724771439664,-151.0,0.00010899,2]
[336307596,1724771439676,-151.0,0.00010899,2]
[336307598,1724771439686,-151.0,0.00010899,2]
[336307600,1724771439695,-151.0,0.00010899,2]
[336307602,1724771439705,-151.0,0.00010899,2]
[336307604,1724771439715,-151.0,0.00010899,2]
[336307606,1724771439724,-151.0,0.00010899,2]
[336307608,1724771439736,-151.0,0.00010899,2]
[336307610,1724771439746,-151.0,0.00010899,2]
[336307612,1724771439755,-151.0,0.00010899,2]
[336307614,1724771439765,-151.0,0.00010899,2]
[336307616,1724771439776,-151.0,0.00010899,2]
[336307618,1724771439793,-151.0,0.00010899,2]
[336307620,1724771439802,-151.0,0.00010899,2]
[336307622,1724771439812,-996.637624,0.00010899,2]
[336307624,1724771439821,-189.298937,0.00010899,2]
[336307626,1724771439830,-996.637624,0.00010899,2]
[336307628,1724771439841,-244.376441,0.00010899,2]
[336307630,1724771439851,-189.298937,0.00010899,2]
[336307632,1724771439860,-244.376441,0.00010899,2]
[336307634,1724771439870,-474.515711,0.00010899,2]
[336307636,1724771439879,-151.0,0.00010899,2]
[336307638,1724771439889,-474.515711,0.00010899,2]
[336307640,1724771439899,-265.560328,0.00010899,2]
[336307642,1724771439908,-265.560328,0.00010899,2]
[336307644,1724771439918,-2494.95990756,0.00010899,2]
[336307646,1724771439927,-2494.95990756,0.00010899,2]
[336307648,1724771439936,-2494.95990756,0.00010899,2]
[336307650,1724771439946,-2494.95990756,0.00010899,2]
[336307652,1724771439955,-2494.95990756,0.00010899,2]
[336307654,1724771439965,-2494.95990756,0.00010899,2]
[336307657,1724771439975,-2494.95990756,0.00010899,2]
[336307658,1724771439985,-151.0,0.00010899,2]
[336307661,1724771439996,-2494.95990756,0.00010899,2]
[336307663,1724771440005,-151.0,0.00010899,2]
[336307665,1724771440014,-2494.95990756,0.00010899,2]
[336307667,1724771440024,-312.399585,0.00010899,2]
[336307668,1724771440040,-312.399585,0.00010899,2]
[336307670,1724771440049,-151.0,0.00010899,2]
[336307672,1724771440059,-151.0,0.00010899,2]
[336307674,1724771440068,-151.0,0.00010899,2]
[336307676,1724771440077,-151.0,0.00010899,2]
[336307678,1724771440087,-151.0,0.00010899,2]
[336307680,1724771440096,-1002.530435,0.00010899,2]
[336307682,1724771440105,-1002.530435,0.00010899,2]
[336307684,1724771440115,-183.117202,0.00010899,2]
[336307686,1724771440124,-183.117202,0.00010899,2]
[336307688,1724771440133,-151.0,0.00010899,2]
[336307690,1724771440143,-151.0,0.00010899,2]
[336307692,1724771440153,-151.0,0.00010899,2]
[336307694,1724771440166,-151.0,0.00010899,2]
[336307696,1724771440178,-876.618742,0.00010899,2]
[336307698,1724771440187,-876.618742,0.00010899,2]
[336307701,1724771440196,-580.401777,0.00010899,2]
[336307704,1724771440208,-580.401777,0.00010899,2]
[336307706,1724771440217,-369.47369,0.00010899,2]
[336307709,1724771440228,-369.47369,0.00010899,2]
[336307711,1724771440239,-151.0,0.00010899,2]
[336307713,1724771440249,-151.0,0.00010899,2]
[336307715,1724771440258,-151.0,0.00010899,2]
[336307717,1724771440267,-151.0,0.00010899,2]
[336307719,1724771440280,-744.47733,0.00010899,2]
[336307721,1724771440289,-744.47733,0.00010899,2]
[336307723,1724771440300,-151.0,0.00010899,2]
[336307725,1724771440310,-688.080838,0.00010899,2]
[336307727,1724771440319,-23086.078401,0.000109,2]
[336307729,1724771440329,-2001.85,0.000109,2]
[336307731,1724771440338,-163.13813902,0.000109,2]
[336307733,1724771440349,-151.0,0.000109,2]
[336307735,1724771440358,-151.0,0.000109,2]
[336307737,1724771440368,-151.0,0.000109,2]
[336307740,1724771440377,-153.853267,0.000109,2]
[336307742,1724771440386,-151.0,0.000109,2]
[336307744,1724771440396,-151.0,0.000109,2]
[336307746,1724771440405,-151.0,0.000109,2]
[336307748,1724771440414,-151.0,0.000109,2]
[336307750,1724771440424,-321.392369,0.000109,2]
[336307752,1724771440433,-321.392369,0.000109,2]
[336307754,1724771440442,-151.0,0.000109,2]
[336307756,1724771440451,-199.518006,0.000109,2]
[336307758,1724771440460,-151.0,0.000109,2]
[336307760,1724771440470,-151.0,0.000109,2]
[336307762,1724771440479,-2494.95990756,0.000109,2]
[336307764,1724771440489,-482.09843348,0.000109,2]
[336307766,1724771440498,-482.09843342,0.000109,2]
[336307769,1724771440508,-482.09843342,0.000109,2]
[336307771,1724771440518,-482.09843342,0.000109,2]
[336307773,1724771440529,-482.09843342,0.000109,2]
[336307775,1724771440538,-482.09843342,0.000109,2]
[336307776,1724771440547,-482.09843342,0.000109,2]
[336307778,1724771440556,-482.09843342,0.000109,2]
[336307780,1724771440565,-330.0106221,0.000109,2]
[336307783,1724771440575,-1477.37045986,0.000109,2]
[336307785,1724771440585,-453.9,0.000109,2]
[336307787,1724771440595,-3448.17376542,0.000109,2]
[336307789,1724771440604,-7500.0,0.00010911,2]
[336307790,1724771440613,-150.66,0.00010933,2]
[336307792,1724771440622,-150.66,0.0001094,2]
[336307795,1724771440632,-150.66,0.0001094,2]
[336307796,1724771440641,-150.66,0.0001094,2]
[336307798,1724771440651,-150.66,0.0001094,2]
[336307800,1724771440660,-150.66,0.0001094,2]
[336307803,1724771440669,-151.0,0.00010943,2]
[336307805,1724771440679,-151.0,0.00010943,2]
[336307807,1724771440688,-151.0,0.00010943,2]
[336307809,1724771440698,-151.310756,0.00010943,2]
[336307811,1724771440708,-151.0,0.00010943,2]
[336307813,1724771440717,-151.0,0.00010943,2]
[336307815,1724771440726,-321.392369,0.00010943,2]
[336307817,1724771440736,-321.392369,0.00010943,2]
[336307819,1724771440746,-151.0,0.00010943,2]
[336307821,1724771440755,-151.0,0.00010943,2]
[336307823,1724771440764,-151.0,0.00010943,2]
[336307825,1724771440774,-151.0,0.00010943,2]
[336307827,1724771440787,-151.0,0.00010943,2]
[336307829,1724771440796,-151.0,0.00010943,2]
[336307831,1724771440805,-151.0,0.00010943,2]
[336307833,1724771440814,-151.0,0.00010943,2]
[336307835,1724771440824,-151.0,0.00010943,2]
[336307837,1724771440833,-151.0,0.00010943,2]
[336307839,1724771440843,-151.0,0.00010943,2]
[336307841,1724771440853,-151.0,0.00010943,2]
[336307843,1724771440863,-151.0,0.00010943,2]
[336307845,1724771440872,-151.0,0.00010943,2]
[336307847,1724771440882,-151.0,0.00010943,2]
[336307849,1724771440891,-151.0,0.00010943,2]
[336307851,1724771440901,-151.0,0.00010943,2]
[336307853,1724771440910,-151.0,0.00010943,2]
[336307855,1724771440919,-151.0,0.00010943,2]
[336307857,1724771440928,-151.0,0.00010943,2]
[336307859,1724771440937,-151.0,0.00010943,2]
[336307861,1724771440947,-151.0,0.00010943,2]
[336307863,1724771440957,-151.0,0.00010943,2]
[336307865,1724771440966,-996.637624,0.00010943,2]
[336307867,1724771440976,-151.0,0.00010943,2]
[336307869,1724771440985,-189.298937,0.00010943,2]
[336307871,1724771440995,-996.637624,0.00010943,2]
[336307873,1724771441004,-244.376441,0.00010943,2]
[336307875,1724771441013,-189.298937,0.00010943,2]
[336307877,1724771441023,-244.376441,0.00010943,2]
[336307879,1724771441036,-474.515711,0.00010943,2]
[336307881,1724771441045,-474.515711,0.00010943,2]
[336307883,1724771441054,-265.560328,0.00010943,2]
[336307885,1724771441063,-265.560328,0.00010943,2]
[336307887,1724771441073,-151.0,0.00010943,2]
[336307889,1724771441082,-151.0,0.00010943,2]
[336307891,1724771441091,-368.6065263,0.00010943,2]
[336307892,1724771441100,-151.0,0.00010943,2]
[336307893,1724771441110,-151.0,0.00010943,2]
[336307894,1724771441119,-312.399585,0.00010943,2]
[336307895,1724771441128,-312.399585,0.00010943,2]
[336307896,1724771441137,-151.0,0.00010943,2]
[336307897,1724771441147,-25949.0132169,0.00010943,2]
[336307898,1724771441157,-151.0,0.00010943,2]
[336307899,1724771441169,-151.0,0.00010943,2]
[336307900,1724771441178,-151.0,0.00010943,2]
[336307901,1724771441187,-151.0,0.00010943,2]
[336307902,1724771441196,-1002.530435,0.00010943,2]
[336307903,1724771441207,-1002.530435,0.00010943,2]
[336307904,1724771441216,-183.117202,0.00010943,2]
[336307905,1724771441224,-183.117202,0.00010943,2]
[336307906,1724771441233,-151.0,0.00010943,2]
[336307907,1724771441244,-151.0,0.00010943,2]
[336307908,1724771441254,-151.0,0.00010943,2]
[336307909,1724771441264,-876.618742,0.00010943,2]
[336307910,1724771441273,-876.618742,0.00010943,2]
[336307912,1724771441284,-13486.2647696,0.00010943,2]
[336307914,1724771441293,-580.401777,0.00010943,2]
[336307916,1724771441302,-580.401777,0.00010943,2]
[336307918,1724771441311,-369.47369,0.00010943,2]
[336307920,1724771441321,-369.47369,0.00010943,2]
[336307922,1724771441330,-151.0,0.00010943,2]
[336307924,1724771441339,-151.0,0.00010943,2]
[336307926,1724771441348,-2475.1214753,0.00010943,2]
[336307928,1724771441358,-151.0,0.00010943,2]
[336307930,1724771441367,-151.0,0.00010943,2]
[336307932,1724771441377,-21258.4608396,0.00010943,2]
[336307934,1724771441386,-744.47733,0.00010943,2]
[336307936,1724771441396,-744.47733,0.00010943,2]
[336307938,1724771441405,-151.0,0.00010943,2]
[336307956,1724771441555,-688.080838,0.00010943,2]
[336307958,1724771441565,-974.4878635,0.00010943,2]
[336307960,1724771441575,-151.0,0.00010949,2]
[336307962,1724771441585,-151.0,0.00010949,2]
[336307964,1724771441594,-218.422861,0.00010949,2]
[336307966,1724771441603,-218.422861,0.00010949,2]
[336307968,1724771441612,-303.888326,0.00010949,2]
[336307970,1724771441621,-303.888326,0.00010949,2]
[336307972,1724771441631,-155.0,0.00010949,2]
[336307974,1724771441640,-155.0,0.00010949,2]
[336307976,1724771441650,-500.11688,0.0001095,2]
[336307978,1724771441659,-123510.88601192,0.0001095,3]
[336307980,1724771441668,-168289.26718991,0.0001095,3]
[336307984,1724771441689,-482.86812235,0.0001095,3]
[336307988,1724771441718,-623.872353,0.0001088,2]
[336307990,1724771441728,-117479.02032995,0.0001095,3]
[336307992,1724771441739,-3091.6,0.0001095,3]
[336307994,1724771441751,-110484.97418603,0.0001095,3]
[336307996,1724771441762,-393.01182328,0.0001095,3]
[336308019,1724771441964,-623.872353,0.00010899,2]
[336308022,1724771441975,-623.872353,0.00010943,2]
[336308024,1724771441985,-611.601582,0.0001095,3]
[336308026,1724771441996,-642.84,0.0001095,3]
[336308028,1724771442007,-1500.0,0.0001095,3]
[336308030,1724771442019,-1341.45000002,0.0001095,3]
[336308033,1724771442034,-262.894995,0.0001095,3]
[336308035,1724771442046,-493.33,0.0001095,3]
[336308037,1724771442057,-13471.89695095,0.0001095,3]
[336308040,1724771442083,-2587.91080622,0.0001095,3]
[336308043,1724771442095,-539.665,0.0001095,3]
[336308045,1724771442106,-518.54005592,0.0001095,3]
[336308063,1724771442275,-0.0152407,0.0001095,3]
[336308066,1724771442289,-1800.3862206,0.0001095,3]
[336308068,1724771442301,-13763.37000087,0.0001095,3]
[336308070,1724771442313,-4950.74664797,0.0001095,3]
[336308281,1724771444292,-310.61499,0.0001085,2]
[336308290,1724771444353,-189.38501,0.0001085,2]
[336308292,1724771444362,-1334.747668,0.0001088,2]
[336308294,1724771444372,-345.04815838,0.0001088,2]
[336308302,1724771444442,-278.82419462,0.0001088,2]
[336308304,1724771444451,-688.080838,0.00010899,2]
[336308306,1724771444460,-579.08104638,0.00010899,2]
[336308311,1724771444498,-755.66662162,0.00010899,2]
[336308313,1724771444508,-623.872353,0.00010899,2]
[336308315,1724771444521,-688.080838,0.00010943,2]
[336308317,1724771444532,-1334.747668,0.00010943,2]
[336308319,1724771444542,-623.872353,0.00010943,2]
[336308321,1724771444551,-25895.42181338,0.0001095,3]
[336308323,1724771444562,-1240.22,0.0001095,3]
[336308325,1724771444573,-20883.5000272,0.0001095,3]
[336308328,1724771444584,-11820.50224,0.0001095,3]
[336308330,1724771444594,-16268.07293523,0.0001095,3]
[336308332,1724771444605,-15793.02818884,0.0001095,3]
[336308479,1724771446339,-151.0,0.0001088,2]
[336308483,1724771446349,-125.75,0.00010899,2]
[336308495,1724771446396,-25.25,0.00010899,2]
[336308498,1724771446406,-27787.02962863,0.0001095,3]
[336308502,1724771446419,-1556.62389,0.0001095,3]
[336308504,1724771446430,-1246.40784,0.0001095,3]
[336308511,1724771446491,-1551.975,0.0001095,3]
[336308535,1724771446764,-84.97041365,0.0001095,3]
[336308557,1724771447072,-2093.63983741,0.0001095,3]
[336308563,1724771447113,-1334.747668,0.0001088,2]
[336308565,1724771447122,-3888.23630683,0.0001095,3]
[336308630,1724771447746,-60964.60037754,0.0001095,3]
[336308929,1724771494112,600.0,8.22e-05,2]
[336308930,1724771495690,600.0,9.59e-05,2]
[336308934,1724771754042,301.72,8.219e-05,2]
[336308939,1724772148738,288.0,9.899e-05,2]
[336308941,1724772282525,286.63,8.219e-05,2]
[336308965,1724772364316,155.07151121,9.899e-05,2]
[336309072,1724772631572,-315.0,9.918e-05,2]
[336309074,1724772631583,-685.0,9.918e-05,2]
[336309075,1724772631593,-1421.04728285,9.943e-05,2]
[336309076,1724772631602,-190.0,9.965e-05,2]
[336309077,1724772631611,-300.0,0.0001,3]
[336309078,1724772631621,-3407.07542256,0.00010097,2]
[336309079,1724772631633,-600.0,0.000101,3]
[336309080,1724772631643,-900.0,0.000102,3]
[336309081,1724772631653,-1300.0,0.000103,3]
[336309082,1724772631662,-1600.0,0.000104,3]
[336309083,1724772631672,-286.63,0.00010471,2]
[336309084,1724772631681,-2854.89141808,0.00010471,2]
[336309085,1724772631698,-474.46635641,0.00010471,2]
[336309086,1724772631710,-447.53187127,0.00010471,2]
[336309087,1724772631723,-200.36035424,0.00010471,2]
[336309088,1724772631732,-289.8028466,0.000105,3]
[336309089,1724772631754,-10.1971534,0.000105,3]
[336309090,1724772631763,-167.0,0.00010527,2]
[336309091,1724772631773,-357.05,0.00010528,2]
[336309092,1724772631783,-71.9228347,0.00010528,2]
[336309093,1724772631794,-277.3671653,0.00010528,2]
[336309094,1724772631813,-416.94380806,0.00010566,2]
[336309095,1724772631824,-416.94380806,0.00010566,2]
[336309096,1724772631834,-300.0,0.000106,3]
[336309097,1724772631844,-818.17999789,0.00010699,2]
[336309098,1724772631854,-300.0,0.000107,3]
[336309099,1724772631864,-3823.27826048,0.00010743,2]
[336309100,1724772631876,-569.99999994,0.00010743,2]
[336309101,1724772631889,-351.899999,0.00010743,2]
[336309102,1724772631901,-2862.03116841,0.00010743,2]
[336309103,1724772631913,-1462.79747217,0.00010743,2]
[336309104,1724772631923,-701.8361,0.00010743,2]
[336309105,1724772631933,-6189.9705,0.00010747,2]
[336309106,1724772631943,-526.55839902,0.00010758,2]
[336309107,1724772631956,-1972.73105548,0.00010758,2]
[336309108,1724772631966,-1333.13,0.00010786,2]
[336309109,1724772631975,-150.0,0.00010786,2]
[336309111,1724772631985,-1500.0,0.00010787,2]
[336309113,1724772631995,-1084.68,0.00010787,2]
[336309114,1724772632005,-1060.15428346,0.00010787,2]
[336309115,1724772632016,-1381.95190557,0.00010787,2]
[336309116,1724772632027,-712.02367317,0.00010787,2]
[336309117,1724772632040,-501.23538144,0.00010787,2]
[336309118,1724772632052,-2903.71306986,0.00010787,2]
[336309119,1724772632065,-3421.55845167,0.00010787,2]
[336309120,1724772632076,-883.99414718,0.00010787,2]
[336309121,1724772632088,-909.30987856,0.00010787,2]
[336309122,1724772632099,-636.79253411,0.00010787,2]
[336309123,1724772632110,-603.91888408,0.00010787,2]
[336309124,1724772632126,-1716.48314861,0.00010787,2]
[336309125,1724772632147,-1339.32568212,0.00010787,2]
[336309126,1724772632158,-1196.345,0.00010787,2]
[336309127,1724772632169,-2733.18396017,0.00010787,2]
[336309128,1724772632179,-1303.56352459,0.00010787,2]
[336309129,1724772637673,-6525.06999584,0.00010787,2]
[336309130,1724772637684,-1019.83248483,0.00010787,2]
[336309131,1724772637696,-683.31048834,0.00010787,2]
[336309132,1724772637708,-785.23100942,0.00010787,2]
[336309133,1724772637719,-2506.77543946,0.00010787,2]
[336309134,1724772637731,-2604.69232305,0.00010787,2]
[336309135,1724772637742,-7969.17193469,0.00010787,2]
[336309136,1724772637753,-3458.69314524,0.00010787,2]
[336309137,1724772637765,-3143.64965454,0.00010787,2]
[336309138,1724772637774,-1517.42,0.00010799,2]
[336309139,1724772637784,-401.77622283,0.000108,2]
[336309140,1724772637793,-357.05,0.000108,2]
[336309141,1724772637802,-150.0,0.000108,2]
[336309142,1724772637811,-357.05,0.000108,2]
[336309143,1724772637821,-357.05,0.000108,2]
[336309144,1724772637830,-300.0,0.000108,3]
[336309145,1724772637839,-4564.7,0.000108,2]
[336309146,1724772637849,-2686.3702,0.0001084,2]
[336309147,1724772637859,-4644.06375209,0.0001085,2]
[336309148,1724772637868,-256.6102956,0.00010851,2]
[336309149,1724772637877,-164.46104346,0.00010851,2]
[336309150,1724772637886,-155.31997098,0.00010858,2]
[336309151,1724772637895,-342.98174791,0.00010858,2]
[336309152,1724772637905,-342.98174791,0.00010879,2]
[336309153,1724772637915,-155.0,0.0001089,2]
[336309154,1724772637924,-151.0,0.00010899,2]
[336309155,1724772637934,-151.0,0.00010899,2]
[336309156,1724772637943,-3334.69122,0.000109,2]
[336309157,1724772637953,-150.0,0.000109,2]
[336309158,1724772637962,-513.8,0.000109,2]
[336309159,1724772637971,-358.0,0.000109,2]
[336309160,1724772637981,-1000.0,0.000109,2]
[336309161,1724772637991,-708.0,0.000109,3]
[336309162,1724772638002,-342.98174791,0.000109,2]
[336309163,1724772638012,-226.0,0.000109,2]